bitfinex/quotes_ETHUSD_20241122
["timestamp","ask_amount","ask_price","bid_price","bid_amount"]
[1732297204318,0.0794551,3296.3,3295.9,0.8518]
[1732297205331,0.0794551,3296.3,3295.9,0.88213551]
[1732297205533,0.0794551,3296.3,3296.1,0.55]
[1732297206331,0.0794551,3296.3,3296.1,0.58033549]
[1732297206742,0.0794551,3296.3,3296.1,0.55]
[1732297208962,0.0794551,3296.3,3296.1,0.8518]
[1732297209725,0.0794551,3296.3,3296.2,0.55]
[1732297209955,0.0794551,3296.3,3296.0,0.55]
[1732297210724,0.0794551,3296.3,3296.2,0.55]
[1732297210924,0.0794551,3296.3,3296.2,0.8518]
[1732297211157,0.0794551,3296.3,3296.2,6.64807351]
[1732297212467,0.0794551,3296.3,3296.2,7.00853307]
[1732297212967,0.77009303,3298.4,3296.6,0.3018]
[1732297212968,0.8175,3298.3,3296.6,0.3018]
[1732297213163,0.03791019,3298.4,3297.4,3.8518]
[1732297213164,1.211513,3298.4,3297.4,3.8518]
[1732297213367,1.211513,3298.4,3297.7,0.3018]
[1732297213661,0.8238,3298.6,3297.8,0.55]
[1732297214364,1.24925511,3299.2,3297.9,0.03031929]
[1732297214578,0.8238,3299.1,3297.9,0.03031929]
[1732297214727,0.20730551,3299.0,3297.9,0.03031929]
[1732297214928,1.01228823,3299.7,3298.1,0.8518]
[1732297215230,1.211119,3299.5,3298.3,3.8518]
[1732297215448,0.03789006,3299.6,3298.3,3.8518]
[1732297215648,0.7813,3299.3,3298.3,0.3018]
[1732297215871,0.7813,3299.3,3297.8,0.58031554]
[1732297216172,0.7813,3299.3,3297.8,1.21797445]
[1732297216379,0.7813,3299.3,3297.9,2.79627351]
[1732297216560,1.211119,3299.6,3298.0,3.58031222]
[1732297216561,0.7813,3299.6,3298.0,3.58031222]
[1732297216872,0.7813,3299.6,3298.3,3.0]
[1732297217044,0.7813,3299.6,3298.4,0.58031224]
[1732297217567,0.7813,3299.6,3298.3,0.50647224]
[1732297217975,0.03788664,3299.5,3297.9,2.79627351]
[1732297218146,0.03788664,3299.5,3297.9,3.07590086]
[1732297218468,0.7813,3299.6,3297.9,3.07590086]
[1732297218669,1.992378,3299.6,3297.9,3.07590086]
[1732297218872,1.992378,3299.6,3297.9,2.79627351]
[1732297219073,1.992378,3299.6,3297.6,2.79627351]
[1732297219074,0.03789171,3299.5,3297.6,2.79627351]
[1732297219249,7.81939151,3299.6,3297.6,2.79627351]
[1732297219250,1.992378,3299.6,3297.6,2.79627351]
[1732297219444,0.23712951,3299.5,3297.8,0.55]
[1732297220472,0.7798,3299.4,3297.8,0.55]
[1732297220640,0.03789208,3299.3,3297.8,0.55]
[1732297221340,0.03789208,3299.3,3297.9,2.79627351]
[1732297221670,0.03789208,3299.3,3298.0,3.55]
[1732297221877,0.03789208,3299.3,3297.8,0.55]
[1732297222049,0.8124,3299.2,3297.8,0.55]
[1732297222251,0.8124,3298.9,3297.0,2.79627351]
[1732297222450,2.79627351,3299.0,3297.0,2.79627351]
[1732297222451,0.8124,3298.7,3297.0,2.79627351]
[1732297222652,0.03790033,3298.6,3297.0,2.79627351]
[1732297222982,0.8124,3298.4,3296.7,2.79627351]
[1732297223193,0.85030657,3298.4,3296.7,2.79627351]
[1732297223347,0.8124,3298.4,3297.0,2.79627351]
[1732297224745,0.8124,3298.4,3297.1,3.55]
[1732297227642,0.8124,3298.4,3297.2,0.3024]
[1732297227879,0.8124,3298.4,3297.3,0.55]
[1732297228393,0.8124,3298.4,3297.3,4.03391351]
[1732297228565,0.8124,3298.4,3297.5,0.55]
[1732297228743,0.7716,3298.7,3297.5,0.55]
[1732297229494,0.7716,3298.7,3297.4,3.3024]
[1732297229495,0.7716,3298.5,3297.2,0.3024]
[1732297229706,0.8028,3298.3,3296.8,3.0]
[1732297230052,0.0379053,3298.2,3296.8,3.0]
[1732297230515,0.0379053,3298.2,3296.5,0.3024]
[1732297230516,0.826,3298.1,3296.5,0.3024]
[1732297230820,0.826,3297.9,3296.7,0.3024]
[1732297231016,0.03790759,3297.8,3296.7,0.3024]
[1732297231219,0.826,3297.7,3296.7,0.3024]
[1732297231528,0.826,3297.7,3296.0,3.09867351]
[1732297231731,0.826,3297.7,3296.1,0.30986735]
[1732297231889,0.826,3297.7,3296.1,0.61226735]
[1732297232586,0.826,3297.7,3296.5,0.55]
[1732297232786,0.826,3297.7,3296.5,3.55]
[1732297233415,0.826,3297.7,3296.5,0.55]
[1732297234887,0.8077,3297.5,3296.4,0.8524]
[1732297235089,0.8077,3297.5,3296.4,1.18264]
[1732297237325,0.78,3298.0,3297.0,0.3024]
[1732297238198,0.78,3298.0,3297.1,0.3024]
[1732297238401,0.7975,3297.8,3297.1,0.3024]
[1732297238630,0.7975,3298.0,3296.5,0.3024]
[1732297238929,0.7975,3297.8,3296.7,0.3024]
[1732297239818,0.7975,3297.8,3296.6,0.3024]
[1732297241032,0.7975,3297.8,3296.7,0.3024]
[1732297241852,0.7975,3297.8,3296.6,0.3024]
[1732297242721,0.82950935,3297.7,3296.6,0.3024]
[1732297243034,0.7916,3297.7,3296.6,0.3024]
[1732297243234,0.82950935,3297.6,3296.6,0.3024]
[1732297244134,0.7916,3297.4,3295.6,0.3024]
[1732297244299,0.7916,3297.2,3295.6,0.3024]
[1732297244500,0.7916,3297.0,3295.8,0.3024]
[1732297244900,0.82951692,3296.9,3295.8,0.3024]
[1732297245227,0.82951692,3296.9,3296.0,0.3024]
[1732297247011,0.7916,3296.9,3295.8,0.3024]
[1732297248205,0.7916,3296.7,3295.8,0.3024]
[1732297248538,0.7916,3296.7,3295.3,3.0]
[1732297248539,0.7916,3296.7,3295.4,0.3024]
[1732297248770,0.7624,3296.5,3295.8,0.3024]
[1732297249560,0.7624,3296.5,3296.0,0.3024]
[1732297249860,0.7765,3296.8,3296.4,0.3024]
[1732297251149,0.7813,3297.8,3296.4,0.3024]
[1732297251457,0.7813,3297.8,3296.5,0.8524]
[1732297252429,0.7813,3297.8,3296.5,3.64867351]
[1732297252628,0.7813,3297.8,3296.7,0.8524]
[1732297254040,0.03790539,3297.7,3296.7,0.8524]
[1732297254230,0.8276,3297.6,3296.7,0.8524]
[1732297260369,0.03790689,3298.7,3297.1,0.3024]
[1732297260370,0.7771,3298.2,3297.1,0.3024]
[1732297260721,0.7771,3298.2,3296.8,2.79627351]
[1732297260722,0.7771,3298.2,3297.5,0.3024]
[1732297260872,0.7771,3298.2,3296.7,0.55]
[1732297260873,0.7771,3298.0,3297.0,0.3024]
[1732297261186,2.79627351,3298.4,3297.0,0.3024]
[1732297261187,0.7771,3297.8,3297.0,0.3024]
[1732297261390,0.7771,3297.8,3296.3,3.0]
[1732297261565,0.7771,3297.8,3295.9,0.34172312]
[1732297261566,0.7771,3297.8,3296.6,3.0]
[1732297261963,0.7771,3297.8,3296.7,0.3024]
[1732297262150,0.7771,3297.8,3296.9,0.3024]
[1732297262393,0.7771,3297.8,3296.9,3.3024]
[1732297262559,2.83418274,3298.7,3297.2,0.3024]
[1732297262762,0.7938,3298.9,3298.1,0.3024]
[1732297262993,0.7938,3298.9,3298.2,0.68764]
[1732297263196,0.7938,3298.9,3298.2,0.3024]
[1732297264000,0.7938,3298.9,3297.9,0.3024]
[1732297265864,0.7938,3298.9,3297.4,3.3024]
[1732297266057,0.7938,3298.9,3297.8,0.3024]
[1732297266389,0.7938,3298.9,3297.9,0.55]
[1732297266955,0.7938,3298.9,3297.8,0.3024]
[1732297267193,0.7938,3298.9,3297.8,3.3024]
[1732297267533,0.03789257,3298.8,3297.8,3.0]
[1732297267659,0.7832,3298.7,3297.0,3.0]
[1732297267859,0.7832,3298.7,3297.1,0.57962735]
[1732297268482,0.7832,3298.7,3297.2,0.3024]
[1732297268483,0.03789843,3298.6,3297.2,0.3024]
[1732297268681,0.7671,3298.5,3297.2,0.3024]
[1732297269015,0.7671,3298.2,3296.2,0.70218268]
[1732297269339,0.7671,3298.0,3296.2,0.36045956]
[1732297269554,0.7671,3298.0,3296.4,0.3024]
[1732297269685,0.7671,3298.0,3296.4,3.09867351]
[1732297269880,0.03790764,3297.9,3296.3,0.3024]
[1732297270220,0.7912,3297.8,3296.3,0.3024]
[1732297270781,0.776,3297.5,3295.8,2.79627351]
[1732297271138,0.03791281,3297.4,3295.8,2.79627351]
[1732297271616,0.776,3297.5,3295.8,2.79627351]
[1732297271816,0.03791278,3297.4,3295.9,0.30986735]
[1732297272120,0.776,3297.5,3296.0,0.55]
[1732297272328,0.776,3297.5,3296.2,3.55]
[1732297272539,0.776,3297.5,3296.3,0.355]
[1732297274082,0.776,3297.5,3296.0,0.55]
[1732297276132,0.776,3297.5,3296.2,3.0]
[1732297278741,0.776,3297.5,3295.7,2.79627351]
[1732297278742,0.7914,3297.3,3295.9,0.8524]
[1732297278930,0.7914,3297.3,3295.9,0.55]
[1732297279136,0.0379127,3297.4,3295.8,3.27962735]
[1732297279137,0.82931272,3297.2,3295.8,0.27962735]
[1732297279311,0.7914,3297.2,3295.5,3.0]
[1732297279511,5.82893351,3297.5,3295.5,3.0]
[1732297279512,0.7914,3297.0,3295.5,3.0]
[1732297279713,0.82931742,3296.9,3295.6,0.57962735]
[1732297280147,0.7754,3296.7,3294.9,0.78643669]
[1732297280349,0.7762,3296.5,3294.9,0.78643669]
[1732297280559,0.7762,3296.5,3295.0,0.35827102]
[1732297281109,0.7762,3296.5,3295.1,3.09867351]
[1732297281346,0.7762,3296.5,3295.3,0.3024]
[1732297281962,0.7762,3296.5,3295.5,0.3024]
[1732297282254,0.7762,3296.5,3295.8,3.3024]
[1732297283249,0.7762,3296.8,3296.0,0.3024]
[1732297283456,0.7762,3296.8,3296.2,0.3024]
[1732297284411,3.12743325,3298.1,3296.2,0.3024]
[1732297284412,0.7762,3298.0,3296.2,0.3024]
[1732297284618,0.81411281,3297.9,3296.2,0.3024]
[1732297284838,0.7762,3297.7,3296.3,0.63264]
[1732297285053,0.7762,3297.6,3296.3,0.63264]
[1732297285559,5.82862351,3297.8,3296.3,0.63264]
[1732297285560,0.81411284,3297.5,3296.3,0.63264]
[1732297285720,0.81411284,3297.5,3296.2,0.3024]
[1732297286145,0.8277,3297.3,3295.9,0.3024]
[1732297287166,0.03791685,3297.2,3295.9,0.3024]
[1732297287373,0.7848,3297.1,3296.2,3.0]
[1732297287687,0.7848,3296.9,3296.0,0.3024]
[1732297288261,0.7848,3296.9,3295.8,0.3024]
[1732297288570,0.7848,3296.9,3295.8,0.88202735]
[1732297289453,0.7848,3296.9,3296.1,0.3024]
[1732297290480,0.7848,3296.9,3296.3,3.3024]
[1732297291954,0.7848,3296.9,3296.4,0.3024]
[1732297292492,0.7848,3296.9,3295.9,0.3024]
[1732297292677,0.7848,3296.9,3296.1,0.3024]
[1732297294299,0.7848,3296.9,3296.4,3.0]
[1732297294598,0.7848,3296.9,3295.4,3.3024]
[1732297294832,0.7848,3296.9,3294.9,1.15689625]
[1732297294833,0.7848,3296.9,3295.8,3.3024]
[1732297295004,0.7848,3296.9,3296.0,0.3024]
[1732297295635,0.7848,3296.9,3295.9,3.33024]
[1732297295636,0.7848,3296.9,3296.3,0.3024]
[1732297295845,2.79627351,3298.2,3296.3,3.3024]
[1732297295846,0.8269,3297.2,3296.3,3.3024]
[1732297296012,0.8269,3297.2,3296.5,0.3024]
[1732297298294,0.8269,3297.2,3296.6,3.09867351]
[1732297298516,0.8174,3298.2,3297.0,3.0]
[1732297298712,0.8174,3298.2,3297.0,3.3024]
[1732297298949,0.8174,3298.2,3297.0,0.91226735]
[1732297299115,0.8174,3298.2,3297.0,0.3024]
[1732297299740,0.8174,3298.2,3296.7,0.3024]
[1732297301018,0.8174,3298.2,3296.6,3.0]
[1732297301225,0.7792,3298.1,3296.6,0.55]
[1732297301719,2.79627351,3297.5,3295.3,0.36045956]
[1732297301924,0.81711471,3297.4,3295.3,0.36045956]
[1732297302251,0.81711471,3297.4,3295.5,3.09867351]
[1732297302455,0.7792,3297.2,3295.6,0.61226735]
[1732297303164,0.7792,3297.2,3295.9,2.79627351]
[1732297303827,0.7792,3297.2,3296.0,3.55]
[1732297308149,0.7792,3297.2,3296.2,2.79627351]
[1732297308349,0.7792,3297.2,3296.3,3.82962735]
[1732297308878,0.7792,3297.2,3296.6,3.55]
[1732297309161,0.7584,3298.3,3296.6,3.55]
[1732297309461,0.7584,3298.3,3296.9,3.0]
[1732297309621,0.7584,3298.3,3297.0,0.3]
[1732297310669,0.7996,3298.1,3296.6,3.55]
[1732297310993,0.7996,3297.9,3296.7,0.3024]
[1732297311286,2.79627351,3298.2,3296.7,0.3024]
[1732297311287,0.83750615,3297.8,3296.7,0.3024]
[1732297311988,0.83750615,3297.8,3296.4,0.3024]
[1732297312776,0.7996,3297.8,3296.5,0.3024]
[1732297313095,0.7724,3297.6,3296.5,0.3024]
[1732297313298,0.7724,3297.4,3296.5,0.3024]
[1732297313796,0.03791216,3297.3,3296.0,0.3024]
[1732297313997,0.7724,3297.2,3296.2,0.3024]
[1732297314210,0.7724,3297.0,3296.2,0.3024]
[1732297314515,0.7724,3296.8,3296.2,0.3024]
[1732297315063,0.7724,3296.8,3295.3,0.3024]
[1732297315305,0.7724,3296.8,3295.5,0.3024]
[1732297315604,0.7724,3296.8,3295.7,0.3024]
[1732297319125,0.7724,3296.8,3295.6,3.0]
[1732297319126,0.7724,3296.8,3296.1,0.3024]
[1732297320224,0.7724,3296.8,3295.8,0.3024]
[1732297320521,0.7724,3296.8,3296.0,0.3024]
[1732297322089,0.7724,3296.8,3295.5,0.3024]
[1732297322422,0.7724,3296.8,3295.7,0.3024]
[1732297323018,0.7724,3296.8,3295.7,3.3024]
[1732297323919,0.7724,3296.8,3295.9,0.3024]
[1732297327869,0.775,3296.7,3295.9,0.3024]
[1732297328160,0.775,3296.7,3294.9,0.78643669]
[1732297328161,0.775,3296.7,3295.4,0.3024]
[1732297329082,0.775,3296.7,3295.5,0.3024]
[1732297329971,0.03792226,3296.6,3295.3,0.3024]
[1732297330286,0.7751,3296.5,3295.3,0.3024]
[1732297330776,0.6208652,3296.9,3295.3,0.3024]
[1732297330777,0.03792385,3296.4,3295.3,0.3024]
[1732297330940,0.7751,3296.3,3295.0,0.3024]
[1732297331133,0.7751,3296.1,3295.0,0.3024]
[1732297331474,0.7751,3296.1,3293.8,0.32064769]
[1732297331475,3.80996,3295.1,3293.3,0.8076]
[1732297331771,0.7751,3294.9,3293.0,3.60387351]
[1732297331983,0.7751,3294.7,3293.0,3.60387351]
[1732297332297,0.03794557,3294.6,3293.1,0.3024]
[1732297332472,0.7602,3294.5,3293.1,0.3024]
[1732297332634,0.79814557,3294.4,3293.1,0.3024]
[1732297332835,0.79814557,3294.4,3292.8,0.3024]
[1732297333442,1.15758748,3294.4,3292.8,0.3024]
[1732297334378,0.7602,3294.4,3293.1,0.3024]
[1732297334575,0.7602,3294.4,3293.4,0.3024]
[1732297335170,0.7602,3294.4,3293.6,0.3024]
[1732297335838,0.7602,3294.4,3293.6,2.79627351]
[1732297336045,0.35713735,3296.2,3293.8,0.32064769]
[1732297336046,2.79627351,3295.8,3293.8,0.32064769]
[1732297336371,0.86173641,3295.7,3293.7,3.0]
[1732297336554,0.8238,3295.4,3293.7,3.0]
[1732297336746,0.8238,3295.2,3293.7,3.0]
[1732297337144,0.7969,3295.0,3293.5,0.7873]
[1732297338387,0.7969,3295.0,3293.7,3.0]
[1732297338580,0.7969,3295.0,3294.1,0.7889]
[1732297339381,0.7969,3295.0,3293.7,0.8282]
[1732297339956,0.7969,3295.0,3293.7,3.8282]
[1732297341347,0.7969,3295.0,3294.3,0.8066167]
[1732297341544,0.03793647,3296.3,3294.5,2.79627351]
[1732297341545,0.8226,3295.4,3294.5,2.79627351]
[1732297341851,0.8226,3295.4,3294.6,3.33462735]
[1732297342379,0.8226,3296.2,3294.6,3.33462735]
[1732297342582,0.8226,3296.2,3294.8,0.7597]
[1732297342882,0.8226,3296.2,3294.9,3.55]
[1732297343186,0.8226,3296.2,3295.0,0.71059735]
[1732297343396,0.03792572,3296.1,3295.0,0.71059735]
[1732297343604,0.03792572,3296.1,3294.9,0.55]
[1732297345068,0.8226,3296.2,3294.9,0.55]
[1732297345597,0.03792574,3296.1,3294.9,0.55]
[1732297346096,0.03792574,3296.1,3295.0,0.3024]
[1732297346398,0.8226,3296.2,3295.0,0.3024]
[1732297347355,0.8122,3296.0,3295.0,0.16121]
[1732297350716,0.79972753,3295.9,3294.5,1.0823]
[1732297351624,0.8031,3295.7,3294.5,1.0823]
[1732297351920,0.84103488,3295.7,3294.5,1.0823]
[1732297352209,0.84103488,3295.7,3294.3,0.0469167]
[1732297352380,0.8031,3295.5,3294.3,0.0469167]
[1732297352576,0.8031,3295.3,3294.3,0.0469167]
[1732297353417,0.36373084,3295.6,3294.3,0.0469167]
[1732297353418,0.8031,3295.1,3294.3,0.0469167]
[1732297354689,0.8031,3295.1,3294.3,0.01474943]
[1732297355124,0.8031,3296.0,3294.4,4.0786]
[1732297355329,0.8031,3296.0,3294.5,0.8524]
[1732297355533,0.8031,3296.0,3294.5,4.63200979]
[1732297355534,0.03793347,3295.9,3294.5,4.63200979]
[1732297355715,3.03336,3296.7,3294.7,3.3024]
[1732297355716,0.7984,3295.8,3294.7,3.3024]
[1732297355923,0.7984,3295.8,3294.9,0.3024]
[1732297356157,0.7984,3295.8,3294.9,0.71354]
[1732297357065,0.7984,3295.8,3294.9,0.3024]
[1732297357852,0.7984,3295.8,3294.6,0.3024]
[1732297359119,0.03793234,3295.7,3294.6,0.3024]
[1732297359322,0.7984,3295.8,3294.6,0.3024]
[1732297359620,0.03793235,3295.7,3294.6,0.3024]
[1732297359821,0.7984,3295.8,3294.8,0.3024]
[1732297360034,0.7984,3295.8,3295.2,0.3024]
[1732297360967,0.03793236,3295.7,3295.2,0.3024]
[1732297361257,0.7984,3295.8,3294.6,0.3024]
[1732297361443,0.03793236,3295.7,3294.6,0.3024]
[1732297361976,0.8024,3295.6,3294.6,0.3024]
[1732297362181,0.84033571,3295.5,3294.7,0.3024]
[1732297362335,0.03793569,3295.4,3294.7,0.3024]
[1732297362568,0.8024,3295.3,3294.7,0.3024]
[1732297363206,0.8024,3295.3,3294.3,0.31714943]
[1732297364457,0.8081,3295.1,3294.4,0.3024]
[1732297364799,0.03793804,3295.0,3294.4,0.3024]
[1732297365096,0.7905,3294.9,3294.4,0.3024]
[1732297365591,0.7905,3294.9,3294.3,0.01474943]
[1732297367204,0.7905,3294.9,3294.5,0.3024]
[1732297368303,0.7905,3294.9,3294.5,3.3024]
[1732297368520,0.7905,3294.9,3294.5,0.3024]
[1732297369078,0.7905,3294.9,3294.3,0.01474943]
[1732297369277,0.7905,3294.9,3294.3,0.31714943]
[1732297369608,0.7905,3294.9,3294.5,0.3024]
[1732297370306,0.03793617,3295.6,3294.3,0.01474943]
[1732297370307,0.7616,3295.5,3294.9,0.3024]
[1732297371408,0.7616,3295.5,3295.0,0.3024]
[1732297372811,0.7616,3295.5,3294.7,0.7921]
[1732297372812,0.776,3296.2,3295.3,0.55]
[1732297373118,0.776,3296.2,3295.4,0.3024]
[1732297374906,0.776,3296.2,3295.4,0.27574673]
[1732297380240,0.7885,3296.0,3295.5,3.24909346]
[1732297380393,0.7885,3296.0,3295.5,0.24909346]
[1732297381324,0.7885,3296.0,3295.6,0.24909346]
[1732297382353,0.7885,3296.0,3295.3,0.24909346]
[1732297382746,0.03792634,3295.9,3295.3,0.24909346]
[1732297382957,0.7885,3295.8,3295.3,0.24909346]
[1732297383265,0.7885,3295.8,3295.4,0.24909346]
[1732297384337,0.7885,3295.8,3294.9,0.24909346]
[1732297384528,0.7885,3295.8,3295.3,0.24909346]
[1732297386531,0.7885,3295.8,3294.8,0.8274]
[1732297386532,0.7885,3295.8,3294.9,0.24909346]
[1732297386726,0.8019,3295.6,3294.9,0.24909346]
[1732297386932,0.03793255,3295.5,3294.9,0.24909346]
[1732297387629,0.8019,3295.6,3294.6,0.24909346]
[1732297388025,0.03793259,3296.2,3294.6,0.24909346]
[1732297388026,0.8019,3295.4,3294.6,0.24909346]
[1732297388248,0.8019,3295.2,3294.6,0.24909346]
[1732297388767,0.8019,3295.2,3294.3,0.01474943]
[1732297389231,0.8019,3295.0,3294.3,0.01474943]
[1732297390725,0.8019,3295.0,3294.3,0.26384289]
[1732297390928,0.8019,3295.0,3294.5,0.24909346]
[1732297391125,0.8171,3295.8,3294.5,0.24909346]
[1732297391369,0.03793594,3295.7,3294.5,0.24909346]
[1732297391663,0.8171,3295.8,3294.5,0.24909346]
[1732297391866,2.83420945,3295.9,3294.5,0.24909346]
[1732297391867,0.8171,3295.6,3294.5,0.24909346]
[1732297392569,0.8171,3295.6,3295.1,0.24909346]
[1732297392870,0.8171,3295.5,3295.1,0.24909346]
[1732297393432,0.8171,3295.5,3295.2,3.0]
[1732297393663,0.8171,3295.5,3294.5,0.24909346]
[1732297394050,0.73653846,3296.5,3294.4,0.7516]
[1732297394051,0.8171,3295.8,3295.1,0.24909346]
[1732297394380,0.8171,3296.7,3295.3,0.79909346]
[1732297394870,0.8171,3296.7,3295.3,1.16421615]
[1732297395861,0.8171,3296.7,3295.7,1.01809346]
[1732297396069,0.8171,3296.7,3295.7,4.01809346]
[1732297396864,0.8171,3296.7,3295.9,0.24909346]
[1732297397248,0.8301,3297.1,3296.1,0.24909346]
[1732297397757,0.8301,3297.1,3296.3,0.24909346]
[1732297398849,0.8301,3297.1,3296.1,0.24909346]
[1732297399862,0.8301,3297.1,3296.3,0.24909346]
[1732297400954,0.8301,3297.1,3296.3,0.22500446]
[1732297401157,0.8301,3297.1,3296.1,0.55]
[1732297401357,0.8301,3297.1,3296.3,0.8524]
[1732297405495,0.8301,3297.1,3296.3,0.55]
[1732297409817,0.8102,3297.4,3296.5,2.79627351]
[1732297410000,0.8102,3298.1,3297.2,3.0]
[1732297410890,0.8102,3298.1,3297.3,0.3024]
[1732297411362,0.8102,3298.1,3297.2,3.0]
[1732297411558,0.8102,3297.9,3296.9,3.0]
[1732297411807,2.79627351,3298.4,3296.9,0.3024]
[1732297411808,0.8102,3297.7,3296.9,0.3024]
[1732297412305,0.8102,3297.7,3296.9,0.46727]
[1732297413175,0.84810662,3297.6,3296.1,0.3024]
[1732297413377,0.8102,3297.6,3297.3,3.0]
[1732297413687,0.8102,3297.6,3296.8,3.3024]
[1732297414462,2.79627351,3298.7,3297.1,3.8524]
[1732297414463,0.8102,3298.5,3297.1,3.8524]
[1732297414668,0.8102,3298.5,3297.1,4.91890231]
[1732297414974,0.8102,3298.5,3297.3,0.3024]
[1732297417509,0.8102,3298.5,3297.9,3.0]
[1732297417803,0.8102,3298.5,3297.4,0.91512269]
[1732297417804,0.8102,3298.5,3297.7,3.8524]
[1732297418108,0.8102,3298.5,3297.9,3.8524]
[1732297418765,0.8102,3298.5,3297.9,6.64867351]
[1732297418968,0.8102,3298.5,3297.9,0.3024]
[1732297419167,0.8102,3298.5,3297.8,0.3024]
[1732297419597,0.8102,3298.5,3297.7,3.0]
[1732297419598,0.8102,3298.5,3297.9,0.63264]
[1732297420191,0.8102,3298.5,3297.9,0.3024]
[1732297420510,0.8102,3298.5,3297.6,0.3024]
[1732297421081,0.8102,3298.5,3297.6,0.66752269]
[1732297422007,0.8102,3298.5,3297.6,3.4637962]
[1732297422219,0.8102,3298.5,3297.8,0.3024]
[1732297422513,0.8102,3298.5,3298.0,0.3024]
[1732297423307,0.8102,3298.5,3297.6,0.3024]
[1732297423805,0.8102,3298.5,3297.8,0.3024]
[1732297426827,0.7505,3298.8,3298.0,3.3024]
[1732297426985,0.7505,3298.8,3298.0,4.0564]
[1732297427819,0.7505,3298.8,3298.2,0.3024]
[1732297429315,0.013559,3298.9,3298.6,0.3024]
[1732297430334,0.013559,3298.9,3298.4,0.3024]
[1732297430666,0.7912,3298.8,3298.4,0.3024]
[1732297431433,0.7912,3298.8,3298.5,0.3024]
[1732297432417,0.7912,3298.8,3298.0,0.3024]
[1732297434468,0.7912,3298.8,3297.9,0.55]
[1732297434469,0.03789401,3298.7,3298.1,0.3024]
[1732297434761,0.7989,3298.6,3298.1,0.3024]
[1732297435434,0.7989,3298.6,3297.5,0.3024]
[1732297435757,0.812459,3298.9,3298.3,0.3024]
[1732297435963,0.812459,3298.9,3298.5,0.3024]
[1732297436961,0.812459,3298.9,3298.1,0.3024]
[1732297437162,0.812459,3298.9,3298.3,0.3024]
[1732297437368,0.812459,3298.9,3298.5,0.3024]
[1732297438279,0.013559,3298.9,3298.3,0.3024]
[1732297438836,0.013559,3298.9,3298.5,0.3024]
[1732297439350,0.013559,3298.9,3298.7,0.3024]
[1732297440236,0.013559,3298.9,3298.4,0.3024]
[1732297440440,0.013559,3298.9,3298.6,0.3024]
[1732297441352,0.013559,3298.9,3298.8,0.8524]
[1732297441554,0.013559,3298.9,3298.8,1.01884]
[1732297442780,0.013559,3298.9,3298.8,0.46884]
[1732297442939,0.013559,3298.9,3298.5,0.3024]
[1732297443136,0.013559,3298.9,3298.7,0.3024]
[1732297443473,0.8058,3298.8,3298.7,0.3024]
[1732297443862,0.013559,3298.9,3298.7,0.3024]
[1732297444765,0.013559,3298.9,3298.6,0.55]
[1732297444766,0.013559,3298.9,3298.8,0.8524]
[1732297444969,0.013559,3298.9,3298.8,0.3024]
[1732297445179,0.013559,3298.9,3298.8,0.8524]
[1732297446201,0.013559,3298.9,3298.5,0.3024]
[1732297446351,0.7948,3298.8,3298.5,0.3024]
[1732297446791,0.013559,3298.9,3298.5,0.3024]
[1732297447096,0.013559,3298.9,3298.7,0.3024]
[1732297447482,0.013559,3298.9,3298.8,0.8524]
[1732297447681,0.013559,3298.9,3298.8,2.39143974]
[1732297447884,0.013559,3298.9,3298.8,5.63058371]
[1732297448907,0.013559,3298.9,3298.8,2.26606582]
[1732297450319,0.013559,3298.9,3298.8,1.88344397]
[1732297450680,0.013559,3298.9,3298.8,5.06233933]
[1732297450896,0.013559,3298.9,3298.8,8.06233933]
[1732297451102,0.013559,3298.9,3298.8,8.42685722]
[1732297452577,0.013559,3298.9,3298.8,5.63058371]
[1732297452805,0.013559,3298.9,3298.8,8.42685722]
[1732297453503,0.013559,3298.9,3298.8,8.43685722]
[1732297455254,0.013559,3298.9,3298.8,8.06233933]
[1732297456040,0.013559,3298.9,3298.8,7.51233933]
[1732297457222,0.013559,3298.9,3298.8,8.06233933]
[1732297457420,0.00548248,3298.9,3298.8,8.06233933]
[1732297457622,0.00548248,3298.9,3298.8,8.43685722]
[1732297458632,0.7721,3300.4,3298.8,7.64495722]
[1732297458834,0.7721,3300.4,3299.7,4.327]
[1732297459034,0.7721,3301.6,3300.0,3.55]
[1732297459239,0.7721,3301.6,3300.2,1.327]
[1732297459517,0.7721,3301.6,3300.4,3.55]
[1732297460381,0.7721,3301.6,3300.3,0.55]
[1732297460568,0.7721,3301.6,3300.5,0.55]
[1732297463579,0.7877,3301.4,3300.5,0.55]
[1732297463783,0.7877,3301.4,3300.4,0.16294]
[1732297463986,0.7877,3301.4,3299.9,0.8234]
[1732297464199,2.79627351,3301.7,3299.9,0.8234]
[1732297464200,0.7877,3301.2,3299.9,0.8234]
[1732297464565,0.7877,3301.2,3299.9,1.20602185]
[1732297465088,0.7877,3301.2,3300.0,0.55]
[1732297465261,0.7877,3301.2,3300.1,0.17560219]
[1732297465997,0.7877,3301.2,3300.2,0.3024]
[1732297466852,0.7877,3301.2,3300.4,0.3024]
[1732297471100,0.7877,3301.2,3300.5,0.3024]
[1732297472207,0.7877,3301.2,3300.4,0.3024]
[1732297472365,2.79627351,3301.4,3300.4,0.3024]
[1732297472366,0.8236,3301.1,3300.4,0.3024]
[1732297472903,0.8236,3301.1,3300.4,0.68502185]
[1732297473083,0.8236,3301.1,3300.6,0.3024]
[1732297473284,0.8236,3302.2,3300.8,0.3024]
[1732297473594,0.8236,3302.1,3301.0,0.3024]
[1732297473798,0.8236,3302.1,3301.2,0.3024]
[1732297474495,0.8236,3302.1,3301.9,3.0]
[1732297474703,0.8236,3301.9,3301.0,0.3024]
[1732297474883,2.79627351,3302.0,3301.0,0.3024]
[1732297474884,0.8236,3301.7,3301.0,0.3024]